fUSD/lending_fUSD_20260406
["ID","MTS","AMOUNT","RATE_DAILY","PERIOD"]
[419898372,1775483450328,-151.0,0.00015182,2]
[419898373,1775483450338,-151.0,0.00015182,2]
[419898374,1775483450347,-151.0,0.00015182,2]
[419898375,1775483450357,-151.0,0.00015182,2]
[419898376,1775483450367,-151.0,0.00015182,2]
[419898377,1775483450377,-222.045865,0.00015182,2]
[419898378,1775483450386,-256.812395,0.00015182,2]
[419898379,1775483450396,-256.812395,0.00015182,2]
[419898380,1775483450406,-256.812395,0.00015182,2]
[419898381,1775483450415,-256.812395,0.00015182,2]
[419898382,1775483450425,-151.0,0.00015182,2]
[419898383,1775483450434,-198.36570913,0.00015187,2]
[419898384,1775483450444,-3878.8871571,0.00015187,2]
[419898385,1775483450454,-2269.98998301,0.00015187,2]
[419898386,1775483450463,-792.0,0.0001519,2]
[419898387,1775483450473,-150.0,0.00015195,2]
[419898388,1775483450483,-1000.0,0.00015196,2]
[419898389,1775483450492,-150.0,0.000152,2]
[419898390,1775483450502,-151.0,0.00015205,2]
[419898391,1775483450511,-151.0,0.00015205,2]
[419898392,1775483450521,-151.0,0.00015205,2]
[419898393,1775483450531,-151.0,0.00015205,2]
[419898394,1775483450540,-151.0,0.00015205,2]
[419898395,1775483450550,-151.0,0.00015205,2]
[419898396,1775483450559,-151.0,0.00015205,2]
[419898397,1775483450569,-151.0,0.00015205,2]
[419898398,1775483450579,-151.0,0.00015205,2]
[419898399,1775483450588,-151.0,0.00015205,2]
[419898400,1775483450598,-179.6,0.00015205,2]
[419898401,1775483450607,-151.0,0.00015205,2]
[419898402,1775483450616,-151.0,0.00015205,2]
[419898403,1775483450626,-151.0,0.00015205,2]
[419898404,1775483450635,-151.0,0.00015205,2]
[419898405,1775483450644,-151.0,0.00015205,2]
[419898406,1775483450654,-8225.03,0.00015205,2]
[419898407,1775483450664,-150.0,0.00015221,2]
[419898408,1775483450674,-2000.0,0.00015226,2]
[419898409,1775483450683,-150.0,0.00015245,2]
[419898410,1775483450693,-151.0,0.00015252,2]
[419898411,1775483450703,-151.0,0.00015252,2]
[419898412,1775483450712,-151.0,0.00015252,2]
[419898413,1775483450722,-151.0,0.00015252,2]
[419898414,1775483450731,-153.618958,0.00015252,2]
[419898415,1775483450740,-153.618958,0.00015252,2]
[419898416,1775483450751,-165.080865,0.00015252,2]
[419898417,1775483450760,-151.0,0.00015252,2]
[419898418,1775483450769,-153.618958,0.00015252,2]
[419898419,1775483450779,-165.080865,0.00015252,2]
[419898420,1775483450788,-151.0,0.00015252,2]
[419898421,1775483450798,-153.618958,0.00015252,2]
[419898422,1775483450808,-165.080865,0.00015252,2]
[419898423,1775483450817,-151.0,0.00015252,2]
[419898424,1775483450827,-165.080865,0.00015252,2]
[419898425,1775483450837,-151.0,0.00015252,2]
[419898426,1775483450847,-151.0,0.00015252,2]
[419898427,1775483450857,-237.205547,0.00015252,2]
[419898428,1775483450866,-151.0,0.00015252,2]
[419898429,1775483450876,-151.0,0.00015252,2]
[419898430,1775483450886,-237.205547,0.00015252,2]
[419898431,1775483450896,-151.0,0.00015252,2]
[419898432,1775483450906,-237.205547,0.00015252,2]
[419898433,1775483450916,-155.47726,0.00015252,2]
[419898434,1775483450925,-237.205547,0.00015252,2]
[419898435,1775483450935,-216.271889,0.00015252,2]
[419898436,1775483450944,-216.271889,0.00015252,2]
[419898437,1775483450954,-216.271889,0.00015252,2]
[419898438,1775483450964,-268.8,0.00015252,2]
[419898439,1775483450975,-216.271889,0.00015252,2]
[419898440,1775483450984,-268.8,0.00015252,2]
[419898441,1775483450995,-151.0,0.00015252,2]
[419898442,1775483451005,-268.8,0.00015252,2]
[419898443,1775483451014,-151.0,0.00015252,2]
[419898444,1775483451024,-268.8,0.00015252,2]
[419898445,1775483451033,-151.0,0.00015252,2]
[419898446,1775483451043,-151.0,0.00015252,2]
[419898447,1775483451053,-151.0,0.00015252,2]
[419898448,1775483451062,-151.0,0.00015252,2]
[419898449,1775483451072,-151.0,0.00015252,2]
[419898450,1775483451082,-151.0,0.00015252,2]
[419898451,1775483451092,-201.754288,0.00015252,2]
[419898452,1775483451102,-151.0,0.00015252,2]
[419898453,1775483451112,-201.754288,0.00015252,2]
[419898454,1775483451122,-151.0,0.00015252,2]
[419898455,1775483451131,-201.754288,0.00015252,2]
[419898456,1775483451141,-151.0,0.00015252,2]
[419898457,1775483451151,-201.754288,0.00015252,2]
[419898458,1775483451160,-151.0,0.00015252,2]
[419898459,1775483451171,-151.0,0.00015252,2]
[419898460,1775483451180,-151.0,0.00015252,2]
[419898461,1775483451191,-150.0,0.00015255,2]
[419898462,1775483451201,-150.0,0.00015255,2]
[419898463,1775483451210,-150.0,0.00015255,2]
[419898464,1775483451220,-150.0,0.00015255,2]
[419898465,1775483451230,-339.30883699,0.00015261,2]
[419898466,1775483451240,-1000.0,0.00015263,2]
[419898467,1775483451250,-150.0,0.00015269,2]
[419898468,1775483451260,-152.0,0.00015269,23]
[419898469,1775483451269,-761.90011983,0.00015277,2]
[419898470,1775483451279,-1000.0,0.00015283,2]
[419898471,1775483451288,-1000.0,0.00015283,2]
[419898472,1775483451299,-1000.0,0.00015283,2]
[419898473,1775483451309,-1000.0,0.00015283,2]
[419898474,1775483451319,-670.609,0.00015283,2]
[419898475,1775483451329,-670.84839751,0.00015286,2]
[419898476,1775483451339,-151.0,0.00015287,2]
[419898477,1775483451348,-433.741914,0.00015287,2]
[419898478,1775483451358,-151.0,0.00015287,2]
[419898479,1775483451368,-151.0,0.00015287,2]
[419898480,1775483451378,-433.741914,0.00015287,2]
[419898481,1775483451388,-157.895416,0.00015287,2]
[419898482,1775483451397,-433.741914,0.00015287,2]
[419898483,1775483451407,-433.741914,0.00015287,2]
[419898484,1775483451416,-151.0,0.00015287,2]
[419898485,1775483451426,-151.0,0.00015287,2]
[419898486,1775483451435,-151.0,0.00015287,2]
[419898487,1775483451445,-151.0,0.00015287,2]
[419898488,1775483451456,-151.0,0.00015287,2]
[419898489,1775483451466,-222.602167,0.00015287,2]
[419898490,1775483451476,-151.0,0.00015287,2]
[419898491,1775483451486,-222.602167,0.00015287,2]
[419898492,1775483451496,-281.27158,0.00015287,2]
[419898493,1775483451506,-222.602167,0.00015287,2]
[419898494,1775483451516,-151.0,0.00015287,2]
[419898495,1775483451526,-222.602167,0.00015287,2]
[419898496,1775483451536,-151.0,0.00015287,2]
[419898497,1775483451546,-151.0,0.00015287,2]
[419898498,1775483451555,-151.0,0.00015287,2]
[419898499,1775483451565,-151.0,0.00015287,2]
[419898500,1775483451576,-300.261063,0.00015287,2]
[419898501,1775483451587,-300.261063,0.00015287,2]
[419898502,1775483451597,-151.0,0.00015287,2]
[419898503,1775483451607,-300.261063,0.00015287,2]
[419898504,1775483451617,-300.261063,0.00015287,2]
[419898505,1775483451630,-151.0,0.00015287,2]
[419898506,1775483451640,-151.0,0.00015287,2]
[419898507,1775483451650,-249.840512,0.00015287,2]
[419898508,1775483451660,-151.0,0.00015287,2]
[419898509,1775483451670,-151.0,0.00015287,2]
[419898510,1775483451680,-151.0,0.00015287,2]
[419898511,1775483451691,-151.0,0.00015287,2]
[419898512,1775483451701,-151.0,0.00015287,2]
[419898513,1775483451711,-151.0,0.00015287,2]
[419898514,1775483451721,-151.0,0.00015287,2]
[419898515,1775483451731,-151.0,0.00015287,2]
[419898516,1775483451742,-151.0,0.00015287,2]
[419898517,1775483451753,-473.420347,0.00015287,2]
[419898518,1775483451763,-1097.565791,0.00015287,2]
[419898519,1775483451772,-1038.983212,0.00015287,2]
[419898520,1775483451782,-1097.565791,0.00015287,2]
[419898521,1775483451791,-473.420347,0.00015287,2]
[419898522,1775483451801,-1038.983212,0.00015287,2]
[419898523,1775483451811,-1097.565791,0.00015287,2]
[419898524,1775483451820,-473.420347,0.00015287,2]
[419898525,1775483451830,-1038.983212,0.00015287,2]
[419898526,1775483451839,-1097.565791,0.00015287,2]
[419898527,1775483451849,-473.420347,0.00015287,2]
[419898528,1775483451859,-1038.983212,0.00015287,2]
[419898529,1775483451868,-151.0,0.00015287,2]
[419898530,1775483451878,-151.0,0.00015287,2]
[419898531,1775483451888,-1208.61988,0.00015287,2]
[419898532,1775483451898,-151.0,0.00015287,2]
[419898533,1775483451908,-151.0,0.00015287,2]
[419898534,1775483451918,-1208.61988,0.00015287,2]
[419898535,1775483451927,-151.0,0.00015287,2]
[419898536,1775483451937,-1208.61988,0.00015287,2]
[419898537,1775483451946,-151.0,0.00015287,2]
[419898538,1775483451956,-1208.61988,0.00015287,2]
[419898539,1775483451965,-151.0,0.00015287,2]
[419898540,1775483451975,-151.0,0.00015287,2]
[419898541,1775483451985,-168.869234,0.00015291,2]
[419898542,1775483451995,-168.869234,0.00015291,2]
[419898543,1775483452005,-168.869234,0.00015291,2]
[419898544,1775483452015,-168.869234,0.00015291,2]
[419898545,1775483452024,-151.0,0.00015291,2]
[419898546,1775483452034,-151.0,0.00015291,2]
[419898547,1775483452043,-182.274065,0.00015291,2]
[419898548,1775483452052,-151.0,0.00015291,2]
[419898549,1775483452062,-151.0,0.00015291,2]
[419898550,1775483452072,-151.0,0.00015291,2]
[419898551,1775483452087,-150.0,0.00015295,2]
[419898552,1775483452096,-1000.0,0.00015296,2]
[419898553,1775483452107,-150.0,0.00015305,2]
[419898554,1775483452116,-474.0,0.00015305,2]
[419898555,1775483452126,-1384.0,0.00015305,2]
[419898556,1775483452136,-150.0,0.00015313,2]
[419898557,1775483452147,-150.0,0.00015334,2]
[419898558,1775483452156,-150.0,0.00015334,2]
[419898559,1775483452166,-150.0,0.00015334,2]
[419898560,1775483452773,-150.0,0.00015338,2]
[419898561,1775483452784,-1000.0,0.00015342,2]
[419898562,1775483452795,-1000.0,0.00015342,2]
[419898563,1775483452805,-1000.0,0.00015342,2]
[419898564,1775483452815,-1000.0,0.00015342,2]
[419898565,1775483452825,-1000.0,0.00015342,2]
[419898566,1775483452835,-1000.0,0.00015342,2]
[419898567,1775483452845,-1000.0,0.00015342,2]
[419898568,1775483452855,-266.452,0.00015342,2]
[419898569,1775483452865,-2000.0,0.00015342,2]
[419898570,1775483452875,-350.0,0.00015343,2]
[419898571,1775483452885,-150.0,0.00015344,2]
[419898572,1775483452895,-1000.0,0.00015354,2]
[419898573,1775483452905,-2811.0,0.0001536,2]
[419898574,1775483452915,-162.0,0.0001536,2]
[419898575,1775483452925,-1573.0,0.0001536,2]
[419898576,1775483452935,-358.0,0.0001536,2]
[419898577,1775483452945,-2811.0,0.0001536,2]
[419898578,1775483452955,-1573.0,0.0001536,2]
[419898579,1775483452965,-150.0,0.00015361,2]
[419898580,1775483452974,-150.0,0.00015361,2]
[419898581,1775483452985,-150.0,0.00015361,2]
[419898582,1775483452995,-465.55,0.00015369,2]
[419898583,1775483453004,-1777.36075232,0.00015386,2]
[419898584,1775483453015,-150.0,0.00015389,2]
[419898585,1775483453025,-168.0,0.0001539,2]
[419898586,1775483453035,-150.0,0.00015394,2]
[419898587,1775483453045,-1422.0,0.00015396,2]
[419898588,1775483453055,-150.0,0.00015407,2]
[419898589,1775483453066,-1000.0,0.00015412,2]
[419898590,1775483453076,-150.0,0.00015414,2]
[419898591,1775483453087,-150.0,0.00015414,2]
[419898592,1775483453098,-150.0,0.00015414,2]
[419898593,1775483453109,-150.0,0.00015414,2]
[419898594,1775483453119,-150.0,0.00015429,2]
[419898595,1775483453129,-152.0,0.00015429,24]
[419898596,1775483453140,-150.0,0.00015443,2]
[419898597,1775483453151,-150.0,0.00015457,2]
[419898598,1775483453162,-150.0,0.00015472,2]
[419898599,1775483453172,-150.0,0.00015476,2]
[419898600,1775483453182,-28465.27449306,0.00015477,2]
[419898601,1775483453192,-350.0,0.00015479,2]
[419898602,1775483453202,-28355.5556747,0.00015486,2]
[419898603,1775483453214,-1000.0,0.00015492,2]
[419898604,1775483453224,-150.0,0.00015493,2]
[419898605,1775483453235,-150.0,0.00015493,2]
[419898606,1775483453246,-150.0,0.00015493,2]
[419898607,1775483453256,-150.0,0.00015493,2]
[419898608,1775483453267,-163.75,0.00015496,2]
[419898609,1775483453277,-151.0,0.000155,2]
[419898610,1775483453287,-151.0,0.000155,2]
[419898611,1775483453297,-151.0,0.000155,2]
[419898612,1775483453307,-151.0,0.000155,2]
[419898613,1775483453317,-151.0,0.000155,2]
[419898614,1775483453327,-151.0,0.000155,2]
[419898615,1775483453337,-151.0,0.000155,2]
[419898616,1775483453346,-151.0,0.000155,2]
[419898617,1775483453356,-151.0,0.000155,2]
[419898618,1775483453366,-151.0,0.000155,2]
[419898619,1775483453376,-151.0,0.000155,2]
[419898620,1775483453386,-151.0,0.000155,2]
[419898621,1775483453396,-151.0,0.000155,2]
[419898622,1775483453406,-2911.0,0.000155,2]
[419898623,1775483453416,-2600.0,0.000155,5]
[419898624,1775483453426,-162.535463,0.000155,2]
[419898625,1775483453435,-385.673566,0.000155,2]
[419898626,1775483453445,-162.535463,0.000155,2]
[419898627,1775483453455,-151.0,0.000155,2]
[419898628,1775483453464,-638.40676,0.000155,2]
[419898629,1775483453474,-385.673566,0.000155,2]
[419898630,1775483453483,-151.0,0.000155,2]
[419898631,1775483453493,-162.535463,0.000155,2]
[419898632,1775483453502,-153.647497,0.000155,2]
[419898633,1775483453512,-638.40676,0.000155,2]
[419898634,1775483453523,-385.673566,0.000155,2]
[419898635,1775483453533,-162.535463,0.000155,2]
[419898636,1775483453542,-283.368696,0.000155,2]
[419898637,1775483453552,-638.40676,0.000155,2]
[419898638,1775483453562,-385.673566,0.000155,2]
[419898639,1775483453572,-159.169124,0.000155,2]
[419898640,1775483453583,-151.0,0.000155,2]
[419898641,1775483453595,-638.40676,0.000155,2]
[419898642,1775483453605,-301.982664,0.000155,2]
[419898643,1775483453616,-151.0,0.000155,2]
[419898644,1775483453626,-283.368696,0.000155,2]
[419898645,1775483453636,-301.982664,0.000155,2]
[419898646,1775483453646,-283.368696,0.000155,2]
[419898647,1775483453656,-301.982664,0.000155,2]
[419898648,1775483453666,-283.368696,0.000155,2]
[419898649,1775483453676,-151.0,0.000155,2]
[419898650,1775483453686,-301.982664,0.000155,2]
[419898651,1775483453696,-151.0,0.000155,2]
[419898652,1775483453706,-792.0,0.00015501,2]
[419898653,1775483453716,-235.82404504,0.00015503,2]
[419898654,1775483453726,-4000.0,0.00015507,2]
[419898655,1775483453736,-2000.0,0.0001554,2]
[419898656,1775483453747,-2000.0,0.0001554,2]
[419898657,1775483453757,-2000.0,0.0001554,2]
[419898658,1775483453766,-200.0,0.00015542,2]
[419898659,1775483453776,-1592.87721993,0.00015542,2]
[419898660,1775483453786,-201.93286099,0.00015542,2]
[419898661,1775483453796,-233.51889341,0.00015542,2]
[419898662,1775483453807,-150.0,0.00015543,2]
[419898663,1775483453817,-3878.88715709,0.00015544,2]
[419898664,1775483453827,-2269.98998301,0.00015544,2]
[419898665,1775483453836,-198.36570913,0.00015544,2]
[419898666,1775483453846,-150.0,0.00015545,2]
[419898667,1775483453856,-150.0,0.00015556,2]
[419898668,1775483453866,-792.0,0.00015561,2]
[419898669,1775483453876,-150.0,0.00015573,2]
[419898670,1775483453886,-150.0,0.00015573,2]
[419898671,1775483453896,-150.0,0.00015573,2]
[419898672,1775483453906,-150.0,0.00015573,2]
[419898673,1775483453916,-500.0,0.00015573,2]
[419898674,1775483453927,-350.0,0.00015585,2]
[419898675,1775483453937,-152.0,0.0001559,25]
[419898676,1775483453947,-150.0,0.00015592,2]
[419898677,1775483453958,-500.0,0.000156,5]
[419898678,1775483453968,-150.0,0.00015601,2]
[419898679,1775483453979,-1000.0,0.00015614,2]
[419898680,1775483453989,-150.0,0.00015614,2]
[419898681,1775483454001,-150.0,0.00015626,2]
[419898682,1775483454011,-1000.0,0.00015628,2]
[419898683,1775483454020,-1000.0,0.00015632,2]
[419898684,1775483454031,-150.0,0.0001564,2]
[419898685,1775483454040,-150.0,0.00015642,2]
[419898686,1775483454050,-150.0,0.00015652,2]
[419898687,1775483454059,-150.0,0.00015652,2]
[419898688,1775483454068,-150.0,0.00015652,2]
[419898689,1775483454078,-792.0,0.0001566,2]
[419898690,1775483454088,-623.42048552,0.00015673,2]
[419898691,1775483454098,-500.0,0.00015673,2]
[419898692,1775483454107,-500.0,0.00015673,2]
[419898693,1775483454117,-1979.79721706,0.00015674,3]
[419898694,1775483454127,-162.0,0.0001568,2]
[419898695,1775483454137,-1573.0,0.0001568,2]
[419898696,1775483454147,-162.0,0.0001568,2]
[419898697,1775483454156,-1573.0,0.0001568,2]
[419898698,1775483454166,-2811.0,0.0001568,2]
[419898699,1775483454177,-1573.0,0.0001568,2]
[419898700,1775483454186,-2081.0,0.0001568,2]
[419898701,1775483454196,-1363.0,0.0001568,2]
[419898702,1775483454207,-151.0,0.0001568,2]
[419898703,1775483454217,-151.0,0.0001568,2]
[419898704,1775483454227,-151.0,0.0001568,2]
[419898705,1775483454237,-151.0,0.0001568,2]
[419898706,1775483454248,-151.0,0.0001568,2]
[419898707,1775483454258,-151.0,0.0001568,2]
[419898708,1775483454268,-150.0,0.00015683,2]
[419898709,1775483454278,-548.63911111,0.0001569,2]
[419898710,1775483454288,-150.0,0.00015692,2]
[419898711,1775483454298,-151.0,0.00015697,2]
[419898712,1775483454308,-151.0,0.00015697,2]
[419898713,1775483454318,-501.28138326,0.00015699,2]
[419898714,1775483454327,-500.0,0.00015699,2]
[419898715,1775483454337,-500.0,0.00015699,2]
[419898716,1775483454346,-500.0,0.00015699,2]
[419898717,1775483454356,-500.0,0.00015699,2]
[419898718,1775483454366,-500.0,0.00015699,2]
[419898719,1775483454376,-500.0,0.00015699,2]
[419898720,1775483454387,-500.0,0.00015699,2]
[419898721,1775483454396,-500.0,0.00015699,2]
[419898722,1775483454406,-500.0,0.00015699,2]
[419898723,1775483454415,-500.0,0.00015699,2]
[419898724,1775483454425,-502.76097898,0.00015699,2]
[419898725,1775483454435,-500.0,0.00015699,2]
[419898726,1775483454444,-507.01970036,0.00015699,2]
[419898727,1775483454454,-500.0,0.00015699,2]
[419898728,1775483454464,-500.0,0.00015699,2]
[419898729,1775483454473,-500.0,0.00015699,2]
[419898730,1775483454483,-500.0,0.00015699,2]
[419898731,1775483454493,-500.0,0.00015699,2]
[419898732,1775483454502,-500.0,0.00015699,2]
[419898733,1775483454512,-500.0,0.00015699,2]
[419898734,1775483454521,-500.0,0.00015699,2]
[419898735,1775483454531,-500.0,0.00015699,2]
[419898736,1775483454540,-500.0,0.00015699,2]
[419898737,1775483454550,-500.0,0.00015699,2]
[419898738,1775483454559,-500.0,0.00015699,2]
[419898739,1775483454569,-508.61892667,0.00015699,2]
[419898740,1775483454579,-500.0,0.00015699,2]
[419898741,1775483454588,-500.0,0.00015699,2]
[419898742,1775483454598,-500.0,0.00015699,2]
[419898743,1775483454607,-500.0,0.00015699,2]
[419898744,1775483454616,-500.0,0.00015699,2]
[419898745,1775483454626,-500.0,0.00015699,2]
[419898746,1775483454637,-113187.6215378,0.000157,2]
[419898748,1775483567811,150.0,0.000157,120]
[419898749,1775483758987,150.0,0.000157,120]
[419898757,1775483955113,150.0,0.000157,120]
[419898763,1775484019745,555.72,0.000161,120]
[419898767,1775484144170,150.0,0.000157,120]
[419898779,1775484334482,150.0,0.000157,120]
[419898780,1775484523755,150.0,0.000157,120]
[419898802,1775484634209,-4316.76444638,0.000107,2]
[419898803,1775484634222,-1053.71656762,0.000107,2]
[419898804,1775484634235,-1407.06176575,0.000107,2]
[419898805,1775484634278,-8271.47057976,0.000107,2]
[419898806,1775484634288,-500.0,0.000111,2]
[419898807,1775484634299,-506.0,0.000111,5]
[419898808,1775484634310,-600.0,0.0001115,2]
[419898809,1775484634321,-166.66666666,0.00011464,2]
[419898810,1775484634330,-557.06176575,0.00011516,2]
[419898811,1775484634341,-200.0,0.00011818,2]
[419898812,1775484634352,-442.4647119,0.00012,2]
[419898813,1775484634362,-1000.0,0.00012092,2]
[419898814,1775484634372,-722.0,0.00012153,2]
[419898815,1775484634382,-300.0,0.00012154,2]
[419898816,1775484634391,-300.0,0.00012154,2]
[419898817,1775484634401,-1200.0,0.00012154,2]
[419898818,1775484634412,-9999.99,0.00012155,2]
[419898819,1775484634422,-195.0,0.0001221,2]
[419898820,1775484634432,-250.0,0.0001221,2]
[419898821,1775484634442,-5019.96383586,0.0001221,2]
[419898822,1775484634453,-250.0,0.0001221,2]
[419898823,1775484634464,-600.0,0.0001221,2]
[419898824,1775484634473,-300.0,0.0001221,2]
[419898825,1775484634483,-250.0,0.0001221,2]
[419898826,1775484634493,-1698.01,0.00012534,2]
[419898827,1775484634504,-161.94,0.00012719,2]
[419898828,1775484634516,-461.39,0.00012778,2]
[419898829,1775484634526,-150.0,0.00012778,2]
[419898830,1775484634537,-500.0,0.00012792,2]
[419898831,1775484634547,-160.0,0.00012857,2]
[419898832,1775484634557,-247.79341402,0.00012917,2]
[419898833,1775484634570,-606.20658598,0.00012917,2]
[419898834,1775484634580,-1420.27490958,0.00012943,2]
[419898835,1775484634590,-500.0,0.000131,2]
[419898836,1775484634600,-150.0,0.000133,2]
[419898837,1775484634610,-420.0,0.0001334,2]
[419898838,1775484634619,-420.0,0.0001334,2]
[419898839,1775484634629,-1318.72250967,0.00013369,2]
[419898840,1775484634671,-361.27749033,0.00013369,2]
[419898841,1775484634681,-144.99850967,0.00013372,2]
[419898847,1775484638235,-181.0,0.00012442,2]
[419898848,1775484638246,-5.00149033,0.00013372,2]
[419898849,1775484638256,-242.95850966,0.00013373,2]
[419898850,1775484638268,-257.04149034,0.00013373,2]
[419898851,1775484638279,-242.95850966,0.00013373,2]
[419898852,1775484638303,-257.04149034,0.00013373,2]
[419898853,1775484638314,-145.83917962,0.00013373,2]
[419899009,1775484640461,-354.16082038,0.00013373,2]
[419899012,1775484640471,-500.0,0.00013373,2]
[419899015,1775484640481,-500.0,0.00013373,2]
[419899018,1775484640491,-461.85205786,0.00013373,2]
[419899022,1775484640515,-38.14794214,0.00013373,2]
[419899023,1775484640525,-500.0,0.00013373,2]
[419899024,1775484640534,-238.75515537,0.00013373,2]
[419899065,1775484641196,-261.24484463,0.00013373,2]
[419899066,1775484641207,-500.0,0.00013373,2]
[419899067,1775484641217,-500.0,0.00013373,2]
[419899068,1775484641228,-628.61275219,0.00013373,2]
[419899069,1775484641238,-151.0,0.00013373,2]
[419899070,1775484641248,-151.0,0.00013373,2]
[419899071,1775484641258,-151.0,0.00013373,2]
[419899072,1775484641268,-151.0,0.00013373,2]
[419899073,1775484641277,-151.0,0.00013373,2]
[419899074,1775484641288,-151.0,0.00013373,2]
[419899075,1775484641299,-151.0,0.00013373,2]
[419899076,1775484641310,-151.0,0.00013373,2]
[419899077,1775484641321,-151.0,0.00013373,2]
[419899078,1775484641331,-151.0,0.00013373,2]
[419899079,1775484641341,-151.0,0.00013373,2]
[419899080,1775484641350,-151.0,0.00013373,2]
[419899081,1775484641360,-3000.0,0.00013508,2]
[419899082,1775484641371,-578.20924308,0.00013523,2]
[419899083,1775484641382,-200.0,0.00013523,2]
[419899084,1775484641393,-695.39793187,0.00013523,2]
[419899085,1775484641403,-1377.42282659,0.00013523,2]
[419899086,1775484641413,-174.61919141,0.00013523,2]
[419899087,1775484641424,-1300.0,0.00013782,2]
[419899088,1775484641433,-2000.0,0.00013937,2]
[419899089,1775484641443,-150.0,0.00014007,2]
[419899090,1775484641452,-258.785575,0.00014009,2]
[419899091,1775484641462,-148.23136738,0.00014056,2]
[419899092,1775484641475,-351.76863262,0.00014056,2]
[419899093,1775484641486,-4842.59434636,0.00014065,2]
[419899098,1775484643445,-4445.09779211,0.00014065,2]
[419899099,1775484643538,-1435.74153958,0.00014065,2]
[419899100,1775484643549,-200.0,0.00014071,2]
[419899101,1775484643559,-1106.7509792,0.00014071,2]
[419899109,1775484646538,-321.63649197,0.00014071,2]
[419899110,1775484646547,-181.08010149,0.00014071,2]
[419899111,1775484646557,-1000.0,0.00014074,2]
[419899112,1775484646567,-1381.46684249,0.00014074,2]
[419899113,1775484646576,-150.0,0.00014075,2]
[419899114,1775484646586,-150.085,0.00014075,2]
[419899115,1775484646598,-150.0,0.00014075,2]
[419899116,1775484646608,-1046.0,0.00014075,2]
[419899117,1775484646618,-3523.0,0.00014075,2]
[419899118,1775484646628,-428.50118184,0.00014075,2]
[419899119,1775484646679,-918.49881816,0.00014075,2]
[419899120,1775484646688,-214.56035778,0.00014075,2]
[419899121,1775484646794,-1006.2589854,0.00014075,2]
[419899125,1775484712833,1838.88,8.725e-05,2]
[419899126,1775484713456,150.0,0.000157,120]
[419899127,1775484900878,150.0,0.000157,120]
[419899129,1775485088211,280.47,0.000157,120]
[419899133,1775485404513,246.28282477,0.00015864,120]
[419899134,1775485467935,166.5,6.368e-05,2]
[419899135,1775485468135,166.5,7.96e-05,2]
[419899137,1775485753138,-166.5,9.552e-05,2]
[419899138,1775485753161,-250.0,0.00010348,2]
[419899139,1775485753185,-250.0,0.00010507,2]
[419899140,1775485753208,-250.0,0.00010899,2]
[419899141,1775485753232,-323.23934514,0.000111,5]
[419899142,1775485833969,-2187.89052827,0.00011,5]
[419899143,1775485833987,-3022.10947173,0.00011,5]
[419899144,1775485834001,-73.7255296,0.00011072,2]
[419899145,1775485834018,-176.2744704,0.00011072,2]
[419899146,1775485834032,-89.57256452,0.00011144,2]
[419899147,1775485834428,-76.92743548,0.00011144,2]